[Event "8th Fischer Heraklion-GM 2022"]
[Site "Heraklion"]
[Date "2022.04.25"]
[Round "1.1"]
[White "Mitsis, Georgios"]
[Black "Korneev, Oleg"]
[Result "1/2-1/2"]
[ECO "D12"]
[WhiteElo "2344"]
[BlackElo "2521"]
[Annotator "TA"]
[PlyCount "32"]
[EventDate "2022.04.18"]
[EventType "tourn"]
[EventCountry "GRE"]
[SourceTitle "playchess.com"]
[Source "ChessBase"]
[SourceQuality "1"]
[TimeControl "40/5400+30:1800+30"]

{[%evp 15,32,18,29,20,30,22,37,0,0,0,0,6,3,7,25,10,61,62,79]} 1. d4 {[%emt 0:02:32]} d5 {[%emt 0:00:02]} 2. Nf3 {[%emt 0:00:20]} Nf6 {[%emt 0:00:04]} 3. c4 {[%emt 0:00:08]} c6 {[%emt 0:00:03]} 4. e3 {[%emt 0:00:17]} Bf5 {[%emt 0:00:18][%cal Bc8f5,Bf5e4,Be4g6][%mdl 32]} 5. Nc3 {[%emt 0:00:20]} e6 {[%emt 0:00:06]} 6. Nh4 {[%emt 0:00:17]} Be4 {[%emt 0:00:07]} 7. f3 {[%emt 0:00:13]} Bg6 {[%emt 0:00:04]} 8. Qb3 {[%emt 0:00:18]} Qc7 {[%emt 0:00:41]} 9. Bd2 {[%emt 0:00:53] D12: Slav Defence: 3 Nf3 Nf6 4 e3 Bf5.} Be7 {[%emt 0:00:55]} 10. g3 {[%emt 0:01:44]} a6 {[%emt 0:01:55]} 11. a4 {[%emt 0:21:45]} O-O {[%emt 0:03:13]} 12. Nxg6 {[%emt 0:05:16]} hxg6 {[%emt 0:00:13]} 13. Rc1 {[%emt 0:00:26] Threatening cxd5.} dxc4 {[%emt 0:05:25]} 14. Bxc4 {[%emt 0:00:09]} Nbd7 {[%emt 0:15:38]} 15. O-O {[%emt 0:03:06] [#]} Nb6 $146 {[%emt 0:15:18]} (15... e5 $11) ({Predecessor:} 15... b5 16. Be2 Qb6 17. Ne4 Rfc8 18. Rc2 Nxe4 19. fxe4 b4 20. Rfc1 Qb7 21. e5 c5 {0-1 (48) Petrosyan,M (2607)-Vachier Lagrave,M (2778) Chess.com INT 2020}) 16. Be2 $14 {[%emt 0:02:34]} Nbd5 {[%emt 0:04:48] Weighted Error Value: White=0.07 (flawless) /Black=0.15 (very precise)} 1/2-1/2

[Event "8th Fischer Heraklion-GM 2022"]
[Site "Heraklion"]
[Date "2022.04.25"]
[Round "1.2"]
[White "Szwed, Jacek"]
[Black "Milikow, Yoav"]
[Result "0-1"]
[ECO "C02"]
[WhiteElo "2360"]
[BlackElo "2383"]
[Annotator "TA"]
[PlyCount "92"]
[EventDate "2022.04.18"]
[EventType "tourn"]
[EventCountry "GRE"]
[SourceTitle "playchess.com"]
[Source "ChessBase"]
[SourceQuality "1"]
[TimeControl "40/5400+30:1800+30"]

{[%evp 11,92,0,-6,-18,-25,-25,-6,-109,-40,-54,-56,-56,-61,-51,-34,-47,0,-15,33,41,18,-96,-100,-103,-97,-98,-70,-99,-100,-226,-223,-221,-231,-218,-224,-229,-218,-246,-218,-229,-195,-200,-158,-171,-97,-187,-187,-195,-190,-216,-216,-241,-233,-224,-195,-300,-250,-268,0,-317,-266,-280,-244,-320,-275,-290,-292,-372,-347,-572,0,0,0,-558,-318,-580,-575,-672,-329,-595,-590,-5327,-1052]} 1. e4 {[%emt 0:01:08]} e6 {[%emt 0:01:41]} 2. d4 {[%emt 0:00:28]} d5 {[%emt 0:00:10]} 3. e5 {[%emt 0:00:18]} c5 {[%emt 0:00:32]} 4. c3 {[%emt 0:00:04]} Qb6 {[%emt 0:00:57]} 5. Nf3 {[%emt 0:00:13]} Nc6 {[%emt 0:01:28]} 6. Bd3 {[%emt 0:00:16]} cxd4 {[%emt 0:01:35]} 7. O-O {[%emt 0:00:35] is now more promising than 7.cxd4. C02: French: Advance Variation.} Bd7 {[%emt 0:01:19]} 8. Re1 {[%emt 0:00:36]} Rc8 {[%emt 0:02:40]} 9. h4 {[%emt 0:02:53]} (9. Nbd2 $11) 9... Nge7 {[%emt 0:07:12]} (9... Nh6 $17 {aiming for ...dxc3.} 10. Qe2 Ng4) 10. a3 {[%emt 0:05:02]} a6 {[%emt 0:04:44]} 11. b4 {[%emt 0:21:50]} dxc3 {[%emt 0:06:56]} 12. Nxc3 {[%emt 0:00:44]} Nd4 {[%emt 0:12:16]} 13. Bb2 {[%emt 0:10:01] [#] Black must now prevent Nxd4.} Ng6 $146 {[%emt 0:10:55]} (13... Nxf3+ $1 $15 {is superior.} 14. Qxf3 g6) ({Predecessor:} 13... Nxf3+ 14. Qxf3 Nc6 15. h5 Na5 16. h6 Nc4 17. Nxd5 Qd8 18. Qg4 Nxb2 19. hxg7 Bxg7 20. Qxg7 {1-0 (30) Bodnaruk,A (2392)-Tomilova,E (2264) Cheliabinsk 2022}) 14. g3 {[%emt 0:07:34] [#]} Bc5 $1 {[%emt 0:05:03]} 15. Ng5 $14 {[%emt 0:12:31]} Nc6 $1 {[%emt 0:05:22][%csl LRe5,LRf2]} 16. Na4 {[%emt 0:11:09]} (16. bxc5 $11 {keeps the balance.} Qxb2 17. Bxg6 hxg6 18. Nxd5 exd5 19. Qxd5) 16... Bxf2+ $17 {[%emt 0:00:07]} 17. Kg2 {[%emt 0:00:03]} Qa7 {[%emt 0:00:39]} 18. Qf3 {[%emt 0:02:30][%csl LRf2,LRf7] [#]} Nd8 {[%emt 0:01:47]} 19. Rf1 {[%emt 0:04:47]} Qe3 {[%emt 0:04:08]} 20. Nc5 {[%emt 0:08:50]} (20. Qxf2 $17 Qxf2+ 21. Rxf2 Bxa4 22. Raf1) 20... Qxf3+ $19 {[%emt 0:00:24]} 21. Nxf3 {[%emt 0:00:44]} Bxc5 {[%emt 0:00:13]} 22. bxc5 {[%emt 0:00:01]} Rxc5 {[%emt 0:01:41]} 23. a4 {[%emt 0:00:57]} h6 {[%emt 0:05:29]} 24. Rfd1 {[%emt 0:05:20]} Rc7 {[%emt 0:04:23]} 25. a5 {[%emt 0:02:29]} Nc6 {[%emt 0:01:09]} 26. Ba3 {[%emt 0:00:38]} Na7 {[%emt 0:02:58]} ({Don't play} 26... Nxa5 27. Bd6 $16) 27. Bd6 {[%emt 0:00:45]} Rc8 {[%emt 0:00:35]} (27... Rc3 $19 {Hoping for ...Ne7.} 28. Rab1 Bb5 29. Bxb5+ Nxb5) 28. Nd4 {[%emt 0:00:20]} (28. Rdb1 $17 Nb5 29. Bxb5 axb5 30. a6 bxa6 31. Rxa6) 28... Nc6 {[%emt 0:01:44]} 29. Bxg6 {[%emt 0:01:04]} fxg6 {[%emt 0:00:14]} 30. Nxc6 {[%emt 0:00:57]} Bxc6 {[%emt 0:01:37]} ({Stronger than} 30... Rxc6 31. Rac1) 31. Rd4 {[%emt 0:00:25]} Bb5 {[%emt 0:01:25]} 32. Ra2 {[%emt 0:00:40]} Kf7 {[%emt 0:02:39]} 33. Rg4 {[%emt 0:00:25]} (33. Rf2+ $142 Kg8 34. Rdf4) 33... Bd3 {[%emt 0:00:14]} 34. Rb4 {[%emt 0:00:32]} Bb5 {[%emt 0:02:10]} ({Don't go for} 34... Be4+ $2 35. Kh3 $19) 35. Rg4 $1 {[%emt 0:00:24]} Rhe8 {[%emt 0:01:32]} 36. Rf2+ {[%emt 0:00:20]} Kg8 {[%emt 0:00:01]} 37. Rxg6 {[%emt 0:00:01]} Rc4 {[%emt 0:01:29] Strongly threatening ...Ba4.} 38. Kh3 {[%emt 0:01:16]} d4 {[%emt 0:02:02]} 39. Rd2 {[%emt 0:00:36]} Rec8 {[%emt 0:00:45]} 40. h5 $2 {[%emt 0:00:00]} (40. Rg4 Ra4 41. Rgxd4) 40... Kf7 {[%emt 0:00:00]} 41. Rf2+ $1 {[%emt 0:08:29]} Kg8 {[%emt 0:03:27]} 42. Rd2 {[%emt 0:00:05]} Kh7 {[%emt 0:08:29]} 43. Be7 $2 {[%emt 0:03:33]} (43. Rg4 {might work better.}) 43... R8c7 {[%emt 0:04:24]} 44. Ba3 {[%emt 0:15:57]} Rf7 {[%emt 0:04:35]} (44... Rc2 $142 45. Rxd4 Bf1+ 46. Kg4 Rh2) 45. Bb2 $2 {[%emt 0:00:47]} (45. Rg4 {was forced.}) 45... d3 {[%emt 0:03:05] ...Rc2 is the strong threat.} 46. Kg2 {[%emt 0:03:30]} Rfc7 {[%emt 0:00:58] Weighted Error Value: White=0.59/Black=0.47} (46... Bc6+ $142 47. Kh2 Rf1) 0-1

[Event "8th Fischer Heraklion-GM 2022"]
[Site "Heraklion"]
[Date "2022.04.25"]
[Round "1.3"]
[White "Nikolaidis, Ioannis"]
[Black "Jahncke, Giso"]
[Result "1-0"]
[ECO "E54"]
[WhiteElo "2536"]
[BlackElo "2326"]
[Annotator "TA"]
[PlyCount "141"]
[EventDate "2022.04.18"]
[EventType "tourn"]
[EventCountry "GRE"]
[SourceTitle "playchess.com"]
[Source "ChessBase"]
[SourceQuality "1"]
[TimeControl "40/5400+30:1800+30"]

{[%evp 24,141,37,31,35,30,49,37,93,99,99,0,9,0,0,0,0,0,0,0,0,-29,-39,-35,-25,-43,0,-28,-21,-21,0,0,0,0,0,0,0,0,0,0,0,0,20,17,31,31,45,19,45,45,45,45,45,45,45,45,48,18,18,18,19,18,50,0,58,18,85,18,44,21,76,76,76,76,76,76,76,76,76,76,76,76,76,76,917,920,895,879,858,837,808,800,800,381,963,900,772,651,571,556,29962,29963,29965,29965,29965,29964,29965,29963,29967,29969,29977,29978,29978,29979,29979,29980,29980,29981,29981,29982]} 1. d4 {[%emt 0:02:07]} Nf6 {[%emt 0:00:09]} 2. c4 {[%emt 0:00:16]} e6 {[%emt 0:00:05]} 3. Nc3 {[%emt 0:00:38]} Bb4 {[%emt 0:00:05]} 4. e3 {[%emt 0:01:28]} O-O {[%emt 0:00:09]} 5. Bd3 {[%emt 0:00:44]} d5 {[%emt 0:00:33]} 6. Nf3 {[%emt 0:01:04]} c5 {[%emt 0:00:46]} 7. O-O {[%emt 0:00:15]} dxc4 {[%emt 0:00:09]} 8. Bxc4 {[%emt 0:00:03]} cxd4 {[%emt 0:00:08]} 9. exd4 {[%emt 0:00:08]} b6 {[%emt 0:00:03]} 10. Bg5 {[%emt 0:04:42]} Bb7 {[%emt 0:00:14]} 11. Rc1 {[%emt 0:00:40]} Nbd7 {[%emt 0:02:27]} 12. Qe2 {[%emt 0:05:25]} Be7 {[%emt 0:09:48]} 13. Rfd1 {[%emt 0:09:35]} h6 {[%emt 0:06:20] E54: Nimzo-Indian: Rubinstein: Main Line: 7...dxc4 8 Bxc4.} 14. Bf4 {[%emt 0:11:00] [#] d5 is the strong threat.} Nh5 $146 {[%emt 0:11:31]} ({Predecessor:} 14... Rc8 15. Ne5 Nd5 16. Nxd5 exd5 17. Bd3 Nxe5 18. Bxe5 Bf6 19. Rxc8 Bxc8 20. Rc1 Bxe5 21. Qxe5 {1-0 (48) Aleksandrov,A (2563)-Sarana,A (2433) Riga 2016}) 15. Be3 {[%emt 0:05:05]} Bd6 {[%emt 0:07:35]} (15... Nhf6 $1 $14) 16. d5 $16 {[%emt 0:08:16]} e5 {[%emt 0:01:15]} 17. Ne4 {[%emt 0:08:25]} (17. Bb5 $16) 17... Ndf6 $11 {[%emt 0:01:20]} 18. Nfd2 {[%emt 0:05:05]} Rc8 {[%emt 0:11:48]} 19. g3 {[%emt 0:06:29]} Nxe4 {[%emt 0:03:21]} 20. Nxe4 {[%emt 0:00:11]} Nf6 {[%emt 0:00:04]} 21. Nc3 {[%emt 0:12:17]} Qd7 {[%emt 0:06:24]} 22. Ba6 {[%emt 0:00:38]} Bxa6 {[%emt 0:06:45]} 23. Qxa6 {[%emt 0:00:04]} Qh3 {[%emt 0:00:13] Threatens to win with ...Ng4.} 24. Qf1 {[%emt 0:02:10]} Qd7 {[%emt 0:03:03]} 25. Qd3 {[%emt 0:05:00]} Ng4 {[%emt 0:05:04]} 26. Ne4 {[%emt 0:01:49]} Nxe3 {[%emt 0:02:17]} (26... Bb8 $5 {[%cal Rf7f5]}) 27. Qxe3 {[%emt 0:01:14]} f5 {[%emt 0:02:05] Hoping for ...Rxc1.} 28. Nxd6 {[%emt 0:01:28]} Qxd6 {[%emt 0:00:06]} 29. Qb3 {[%emt 0:01:55]} Rxc1 {[%emt 0:04:25]} 30. Rxc1 {[%emt 0:00:04][%mdl 4096] Endgame KQR-KQR} Rd8 {[%emt 0:00:07]} 31. Qf3 {[%emt 0:02:37]} f4 {[%emt 0:03:28]} 32. Rd1 {[%emt 0:00:34]} fxg3 {[%emt 0:02:12]} 33. hxg3 {[%emt 0:00:06]} Rf8 {[%emt 0:01:09]} 34. Qe4 {[%emt 0:01:49]} Rd8 {[%emt 0:02:01]} 35. Rd3 {[%emt 0:01:00]} Kh8 {[%emt 0:03:52]} 36. Kg2 {[%emt 0:00:10]} Kg8 {[%emt 0:00:06]} 37. a4 {[%emt 0:00:28]} Kh8 {[%emt 0:01:55]} 38. b4 {[%emt 0:00:49]} Kg8 {[%emt 0:01:22]} 39. b5 {[%emt 0:00:05]} Rd7 {[%emt 0:01:26]} 40. Qc4 {[%emt 0:00:00]} Rc7 {[%emt 0:00:00]} 41. Qg4 {[%emt 0:05:52]} Rd7 {[%emt 0:01:57]} 42. Qf5 {[%emt 0:04:37]} Rd8 {[%emt 0:00:54]} 43. Qe4 {[%emt 0:00:54]} Rd7 $1 {[%emt 0:02:00]} 44. Rd2 {[%emt 0:03:12]} Rc7 {[%emt 0:03:08]} (44... g6 $11) 45. Rd1 {[%emt 0:04:11]} (45. Re2 $16) 45... Rd7 {[%emt 0:02:53]} 46. Rd3 {[%emt 0:00:09]} (46. Kf1 {is more complex.} Kf7 47. Qf3+ Qf6 48. Qg4) 46... Rc7 {[%emt 0:01:52]} (46... g6 $11) 47. Re3 $16 {[%emt 0:04:49]} Rc5 {[%emt 0:01:58]} 48. Qxe5 {[%emt 0:00:06]} Qxd5+ {[%emt 0:06:50]} 49. Qxd5+ {[%emt 0:00:25]} Rxd5 {[%emt 0:00:03] KR-KR} 50. Re7 {[%emt 0:00:08]} a6 {[%emt 0:01:18]} 51. bxa6 {[%emt 0:02:22] White threatens a7 and mate.} Ra5 {[%emt 0:00:14][%csl LRa4,LRa6]} 52. a7 {[%emt 0:00:14] Intending Re8+ and mate. &Bianco is more active.} Kh7 {[%emt 0:00:04]} 53. f4 {[%emt 0:00:30][%cal Bf2f4,Bf4f5][%mdl 32] And now f5! would win.} h5 $2 {[%emt 0:03:41][%mdl 8192] Black cannot hold the game after this.} (53... Kg6 $16) 54. Rb7 $1 $18 {[%emt 0:04:59]} Rxa4 {[%emt 0:01:56] [#]} 55. f5 $1 {[%emt 0:03:15] Threatening mate with f6.} Kh6 {[%emt 0:00:11]} 56. Rxb6+ {[%emt 0:00:04]} Kg5 {[%emt 0:00:06]} 57. Rg6+ {[%emt 0:00:04]} Kxf5 {[%emt 0:00:05]} 58. Rxg7 {[%emt 0:00:03]} Ra2+ $2 {[%emt 0:05:43] [#]} (58... Ra3 59. Kf2 Kf6) 59. Kf3 $1 {[%emt 0:02:30]} Ra3+ {[%emt 0:00:04]} 60. Ke2 {[%emt 0:00:38]} Ke4 {[%emt 0:00:16]} 61. Kd2 {[%emt 0:00:41]} Kf3 {[%emt 0:01:50]} 62. Kc2 {[%emt 0:00:33] White mates.} Ra1 {[%emt 0:03:46]} 63. Kb2 {[%emt 0:01:29]} ({Not} 63. Rf7+ Kxg3 64. Rg7+ Kf3 $11) 63... Ra6 {[%emt 0:00:10]} 64. Kc3 {[%emt 0:00:16]} Ra1 {[%emt 0:01:00]} 65. Kd4 {[%emt 0:00:21]} ({Weaker is} 65. Rf7+ Kxg3 66. Rh7 h4 $11) 65... Ra4+ {[%emt 0:01:04]} 66. Kc5 {[%emt 0:00:08]} Ra1 {[%emt 0:00:16]} 67. Kb6 {[%emt 0:00:26]} Rb1+ {[%emt 0:03:02]} 68. Kc7 {[%emt 0:00:15]} Ra1 {[%emt 0:01:17]} 69. Kb8 {[%emt 0:00:06]} Rb1+ {[%emt 0:00:46]} 70. Rb7 {[%emt 0:00:07]} Ra1 {[%emt 0:00:09]} 71. Rb3+ {[%emt 0:00:03] Weighted Error Value: White=0.15 (very precise) /Black=0.14 (very precise)} 1-0

[Event "8th Fischer Heraklion-GM 2022"]
[Site "Heraklion"]
[Date "2022.04.25"]
[Round "1.4"]
[White "Materia, Marco"]
[Black "Samaridis, Konstantinos"]
[Result "1-0"]
[ECO "D31"]
[WhiteElo "2398"]
[BlackElo "2064"]
[Annotator "TA"]
[PlyCount "71"]
[EventDate "2022.04.18"]
[EventType "tourn"]
[EventCountry "GRE"]
[SourceTitle "playchess.com"]
[Source "ChessBase"]
[SourceQuality "1"]
[TimeControl "40/5400+30:1800+30"]

{[%evp 14,71,19,19,18,20,16,14,16,6,11,15,12,14,18,-1,0,-3,0,-6,11,12,164,144,168,156,160,156,201,181,339,237,304,285,420,411,357,347,368,210,203,168,161,158,140,86,171,170,170,175,228,225,406,395,29984,29985,29988,29989,29996,29997]} 1. d4 {[%emt 0:00:02]} Nf6 {[%emt 0:00:06]} 2. c4 {[%emt 0:00:09]} e6 {[%emt 0:00:04]} 3. Bf4 {[%emt 0:00:05]} d5 {[%emt 0:00:50]} 4. cxd5 {[%emt 0:00:06]} exd5 {[%emt 0:00:20]} 5. e3 {[%emt 0:00:07]} c6 {[%emt 0:00:36]} 6. Bd3 {[%emt 0:00:24]} Bd6 {[%emt 0:01:03]} 7. Bxd6 {[%emt 0:00:29]} Qxd6 {[%emt 0:00:01]} 8. Nc3 {[%emt 0:00:12]} O-O {[%emt 0:00:57] D31: Queen's Gambit Declined: Semi-Slav without ...Nf6 (+ Marshall Gambit and Noteboom) and Exchange Variation lines without ...Nf6.} 9. Nge2 {[%emt 0:02:04]} Re8 {[%emt 0:01:40]} 10. h3 {[%emt 0:05:42]} Nbd7 {[%emt 0:03:08] [#] The position is equal.} 11. Qd2 $146 {[%emt 0:04:53]} ({Predecessor:} 11. O-O) 11... Ne4 {[%emt 0:06:52]} 12. Nxe4 {[%emt 0:13:23]} dxe4 {[%emt 0:00:08]} 13. Bc2 {[%emt 0:00:21]} Nb6 {[%emt 0:01:54]} 14. Ng3 {[%emt 0:05:42]} f5 {[%emt 0:01:48]} 15. Bb3+ {[%emt 0:03:07]} Kh8 {[%emt 0:01:31]} 16. O-O {[%emt 0:04:57]} c5 {[%emt 0:02:42]} 17. Rac1 {[%emt 0:07:05][%cal Ba1c1,Bc1c4,Bc4c3,Bc3c7][%mdl 32]} c4 {[%emt 0:14:16]} (17... cxd4 $11 18. Qxd4 Qxd4 19. exd4 f4) 18. Bxc4 $18 {[%emt 0:02:22]} Nxc4 {[%emt 0:01:18]} 19. Rxc4 {[%emt 0:00:07]} Be6 {[%emt 0:02:03]} 20. Rc3 {[%emt 0:04:32]} Bd7 {[%emt 0:03:27]} 21. Rfc1 {[%emt 0:02:10]} g5 $2 {[%emt 0:01:57]} (21... g6 22. Ne2 a6) 22. Qc2 {[%emt 0:05:11]} Qg6 {[%emt 0:04:19]} 23. Rc7 {[%emt 0:01:01][%csl LRb7,LRd7]} Rac8 {[%emt 0:05:33]} (23... Rad8 $142 24. d5 Kg8) 24. Qd2 {[%emt 0:03:24]} Rcd8 {[%emt 0:09:34]} 25. d5 {[%emt 0:04:00]} ({Don't take} 25. Rxb7 f4 26. Nf1 (26. Rxa7 fxg3 27. fxg3 Bc6 $16) 26... f3 $18) 25... Kg8 {[%emt 0:01:07]} 26. Ne2 {[%emt 0:05:01] Against f4} (26. Rxb7 $142 f4 27. Nf1 (27. Rxa7 fxg3 28. fxg3 Qd6 $11)) 26... Bc6 {[%emt 0:04:19]} 27. Nd4 {[%emt 0:04:30]} Bxd5 {[%emt 0:01:12]} 28. Qc3 $36 {[%emt 0:01:23][%cal Od4f5][%mdl 2048] [#] Threatens to win with Nxf5! Keeping Black busy.} Rf8 {[%emt 0:16:00]} 29. Qc5 {[%emt 0:04:06] White is more active.} ({White should play} 29. g4 fxg4 30. hxg4) 29... Qd6 {[%emt 0:02:17]} (29... f4 $16) 30. Qxa7 {[%emt 0:03:04]} f4 {[%emt 0:01:42] aiming for ...fxe3.} 31. Qc5 {[%emt 0:02:39]} fxe3 {[%emt 0:00:17]} (31... Qh6 $142) 32. fxe3 {[%emt 0:00:05]} Qg3 $2 {[%emt 0:01:13]} (32... b6 33. Qxd6 Rxd6) 33. Qe7 {[%emt 0:01:34][%csl Gc7][%cal Re7h7] [#] The board is on fire.} Qxe3+ $2 {[%emt 0:00:50]} (33... Qf2+ $18 34. Kh1 Qf7 35. Qxg5+ Qg6) 34. Kh1 {[%emt 0:00:23][%csl Gc7][%cal Re7h7] White mates.} Bf7 {[%emt 0:01:18]} 35. Nf5 {[%emt 0:00:56]} Qb6 {[%emt 0:01:36]} 36. Qe5 {[%emt 0:00:09] Weighted Error Value: White=0.15 (very precise) /Black=0.46} 1-0

[Event "8th Fischer Heraklion-GM 2022"]
[Site "Heraklion"]
[Date "2022.04.25"]
[Round "1.5"]
[White "Kapnisis, Spyridon"]
[Black "Vaishali R"]
[Result "1/2-1/2"]
[ECO "B33"]
[WhiteElo "2450"]
[BlackElo "2411"]
[Annotator "TA"]
[PlyCount "49"]
[EventDate "2022.04.18"]
[EventType "tourn"]
[EventCountry "GRE"]
[SourceTitle "playchess.com"]
[Source "ChessBase"]
[SourceQuality "1"]
[TimeControl "40/5400+30:1800+30"]

{[%evp 18,49,7,9,11,-25,10,0,6,9,9,6,16,8,11,0,5,-8,0,-8,0,0,0,0,0,0,0,0,0,0,0,0,0,0]} 1. e4 {[%emt 0:00:05]} c5 {[%emt 0:00:39]} 2. Nf3 {[%emt 0:00:08]} Nc6 {[%emt 0:00:06]} 3. d4 {[%emt 0:00:11]} cxd4 {[%emt 0:00:05]} 4. Nxd4 {[%emt 0:00:04]} Nf6 {[%emt 0:00:06]} 5. Nc3 {[%emt 0:00:04]} e5 {[%emt 0:00:11]} 6. Ndb5 {[%emt 0:00:10]} d6 {[%emt 0:00:05]} 7. Nd5 {[%emt 0:00:29]} Nxd5 {[%emt 0:00:08]} 8. exd5 {[%emt 0:00:04]} Nb8 {[%emt 0:00:20]} 9. c4 {[%emt 0:00:32]} Be7 {[%emt 0:00:13]} 10. c5 {[%emt 0:00:26]} O-O {[%emt 0:01:55] B33: Sicilian: Pelikan and Sveshnikov Variations.} (10... dxc5 $2 11. d6 Na6 12. dxe7 Qxd1+ 13. Kxd1 $18) 11. Bc4 {[%emt 0:03:57]} a6 {[%emt 0:01:52] [#]} (11... Bd7 $5 {[%cal Rd7b5]} 12. cxd6 Bxb5 13. Bxb5 (13. dxe7 Qxe7 14. Bxb5 Qb4+ 15. Ke2 Qxb5+ 16. Qd3 Qb4 $11) 13... Qxd6 $11) 12. cxd6 $1 {[%emt 0:02:39] The position is equal.} Bxd6 {[%emt 0:01:11]} 13. Nxd6 {[%emt 0:00:07]} Qxd6 {[%emt 0:00:04]} 14. O-O {[%emt 0:00:05]} b5 {[%emt 0:12:21]} 15. Bb3 {[%emt 0:01:27]} Bb7 {[%emt 0:00:16]} 16. Be3 {[%emt 0:19:40]} Nd7 {[%emt 0:01:15]} 17. Rc1 {[%emt 0:06:06]} Rac8 {[%emt 0:05:56]} 18. Qd3 {[%emt 0:08:42]} Nf6 {[%emt 0:10:16] [#]} 19. Bg5 $146 {[%emt 0:06:09]} ({Predecessor:} 19. Rxc8 Rxc8 20. Rd1 h6 21. Qf5 Rc7 22. f4 exf4 23. Qxf4 Qxf4 24. Bxf4 Rd7 25. d6 g5 26. Be5 Ng4 27. Bc3 Ne3 28. Re1 b4 29. Bd4 Nf5 30. Re8+ Kh7 {1-0 (30) Nikolic,R (2219)-Ivkovic,M (1000) Belgrade 2015}) 19... Rxc1 {[%emt 0:30:37]} 20. Rxc1 {[%emt 0:00:37]} Nxd5 {[%emt 0:00:59]} 21. Rd1 {[%emt 0:05:50][%cal Rb3d5]} h6 $1 {[%emt 0:00:45]} 22. Bh4 {[%emt 0:05:03][%cal Rb3d5] This bishop pair is nice.} Qb4 {[%emt 0:02:16]} 23. Bxd5 {[%emt 0:24:15]} Bxd5 {[%emt 0:00:08]} 24. Qxd5 {[%emt 0:00:05] [#] Bg3 is the strong threat.} Qxh4 {[%emt 0:00:06]} 25. Qxe5 {[%emt 0:00:12] An even fight not without its subleties.  Weighted Error Value: White=0.05 (flawless) /Black=0.05 (flawless)} 1/2-1/2